Cogmind - Beta 9.6 @@@ ROGUE MODE // 2020.05.31 @ 13:17:21 Player: Pimski Result: Destroyed by 8R-AWN with 8R-AWN's Boregun Performance ------------- Evolutions (0) 0 Regions Visited (3) 600 Robots Destroyed (26) 130 Value Destroyed (457) 457 Prototype IDs (22) 440 Alien Tech Used (0) 0 Bonus (288) 288 TOTAL SCORE: 1915 Bonus ------- Aligned with FarCom 300 Friendly Fire -12 Cogmind --------- Core Integrity 0/250 Matter 284/300 Energy 85/100 System Corruption 0% Temperature Cool (0) Movement Treading (160) Location -10/Exiles Parts ------- > --- POWER (1) -------- (None) > --- PROPULSION (2) --- Light Treads Light Treads > --- UTILITY (2) ------ Large Storage Unit Large Storage Unit > --- WEAPON (2) ------- Mining Claw Mining Claw > --- INVENTORY (16) --- Light Treads Light Treads Light Treads Light Treads Compact Wheel Melee Analysis Suite AWS/Thermal Light Assault Rifle Light Assault Rifle Light Assault Rifle Heavy Assault Rifle Heavy Assault Rifle Mining Claw Mining Claw Peak State ------------ > --- POWER ------------ Ion Engine > --- PROPULSION ------- Light Treads Light Treads > --- UTILITY ---------- Large Storage Unit Large Storage Unit > --- WEAPON ----------- AWS/Thermal > --- INVENTORY -------- Light Treads Light Treads Light Treads Light Treads Light Treads Compact Wheel Melee Analysis Suite Light Assault Rifle Heavy Assault Rifle Heavy Assault Rifle Mining Claw Mining Claw Mining Claw Mining Claw [Rating: 22] Favorites ----------- Power Ion Engine Engine Ion Engine Propulsion Light Treads Treads Light Treads Leg Aluminum Leg Wheel Compact Wheel Utility Large Storage Unit Storage Large Storage Unit Weapon Heavy Assault Rifle Energy Gun Particle Gun Ballistic Gun Heavy Assault Rifle Slashing Weapon Mining Claw Build | -11 -10 -10 -10 ------- Run | Scr Mat Min Exi Slots Evolved . | . . . . Power . | . . . . Propulsion . | . . . . Utility . | . . . . Weapon . | . . . . Parts Attached 18 | . 6 4 8 Power 1 | . 1 . . Engine 1 | . 1 . . Core . | . . . . Reactor . | . . . . Propulsion 8 | . 2 1 5 Treads 6 | . 2 1 3 Leg . | . . . . Wheel 2 | . . . 2 Hover . | . . . . Flight . | . . . . Utility 2 | . 2 . . Device . | . . . . Storage 2 | . 2 . . Processor . | . . . . Hackware . | . . . . Protection . | . . . . Artifact . | . . . . Weapon 7 | . 1 3 3 Energy Gun 3 | . 1 1 1 Energy Cannon . | . . . . Ballistic Gun 2 | . . 2 . Ballistic Cannon . | . . . . Launcher . | . . . . Special Weapon . | . . . . Impact Weapon . | . . . . Slashing Weapon 2 | . . . 2 Piercing Weapon . | . . . . Special Melee Weapon . | . . . . Unidentified Prototypes . | . . . . Parts Lost 2 | . . . 2 Power 1 | . . . 1 Propulsion 1 | . . . 1 Utility . | . . . . Weapon . | . . . . Highest Loss Streak 2 | . . . 2 Average Slot Usage (%) 99 | . 99 100 99 Engine 13 | . 14 14 13 Treads 26 | . 27 28 24 Wheel 1 | . . . 3 Storage 27 | . 27 28 28 Energy Gun 6 | . 13 9 . Ballistic Gun 20 | . 14 18 25 Naked Turns . | . . . . Heaviest Build 43 | 13 42 43 43 Greatest Support 40 | 20 40 40 40 Greatest Overweight (x) 2 | . 2 1 2 Average Overweight (x) 1 | . . 1 1 Largest Inventory Capacity 16 | 6 16 16 16 Average Capacity 15 | 6 15 16 16 Most Carried 16 | 6 16 16 16 Average Carried 15 | 6 13 15 15 Final Capacity 16 | 6 16 16 16 Final Carried 16 | 6 16 16 15 Class Distribution -------------------- 100% | Mutant Dominant Class ---------------- Mutant | -10/Materials Mutant | -10/Mines Mutant | -10/Exiles Resources | -11 -10 -10 -10 ----------- Run | Scr Mat Min Exi Matter Collected 519 | 212 103 147 57 Remotely . | . . . . Salvage Created 835 | 58 346 324 107 Parts 37 | 3 17 17 . Haulers Intercepted . | . . . . Recyclers Shooed 3 | . 2 1 . Parts Field Recycled . | . . . . Retrieved Matter . | . . . . Parts Self-Destructed . | . . . . Prevented . | . . . . Kills | -11 -10 -10 -10 ------- Run | Scr Mat Min Exi Combat Hostiles Destroyed 23 | . 7 9 7 Guns 23 | . 7 9 7 Classes Destroyed 4 | 1 2 . 1 Recycler 3 | 1 2 . . Swarmer 6 | . 3 3 . Grunt 10 | . 4 6 . Assembled 7 | . . . 7 Best Kill Streak 7 | 1 5 3 7 Combat Bots Only 7 | . 3 3 7 Max Kills in Single Turn 1 | 1 1 1 1 Gunslinging . | . . . . Exploded . | . . . . Melee . | . . . . Uniques/NPCs Destroyed . | . . . . Combat | -11 -10 -10 -10 -------- Run | Scr Mat Min Exi Damage Taken 1064 | . 196 324 544 Core 263 | . 30 74 159 Absorbed by Shields . | . . . . Core Remaining (%) 100 | 100 . . . Volleys Fired 52 | 4 24 23 1 Largest 2 | 2 2 2 1 Hottest 85 | 70 85 85 23 Shots Fired 112 | 8 48 45 11 Gun 112 | 8 48 45 11 Cannon . | . . . . Launcher . | . . . . Special . | . . . . Kinetic 55 | 4 24 26 1 Thermal 57 | 4 24 19 10 Explosive . | . . . . Electromagnetic . | . . . . Robot Hit Streak 23 | 3 15 23 10 Robot Miss Streak 4 | 3 4 1 1 Penetration Max . | . . . . Secondary Targets 2 | . 1 1 . Max Gunslinging Chain 1 | . 1 1 . Autonomous 10 | . . . 10 Shots Hit Robots 96 | 4 37 37 18 Core Hits 40 | 2 15 15 8 Critical Hits . | . . . . Critical Kills . | . . . . Critical Parts Destroyed . | . . . . Melee Attacks 14 | . . . 14 Impact . | . . . . Slashing 14 | . . . 14 Piercing . | . . . . Sneak Attacks . | . . . . Combat Hostiles . | . . . . Follow-up Attacks 3 | . . . 3 Damage Inflicted 1636 | 51 497 601 487 Guns 1423 | 51 497 581 294 Cannons . | . . . . Explosions . | . . . . Melee 193 | . . . 193 Ramming 20 | . . 20 . Kinetic 511 | 13 203 283 12 Thermal 912 | 38 294 298 282 Explosive . | . . . . Electromagnetic . | . . . . Impact . | . . . . Slashing 193 | . . . 193 Piercing . | . . . . Highest Corruption . | . . . . Average Corruption . | . . . . Corruption Purged . | . . . . Overload Shots . | . . . . Overflow Damage . | . . . . Projectiles . | . . . . Explosions . | . . . . Melee . | . . . . Knockbacks . | . . . . Impact . | . . . . Kinetic . | . . . . Secondary . | . . . . Self-Inflicted Damage . | . . . . Shots . | . . . . Rammed 4 | . . 4 . Targets Rammed 4 | . . 4 . Kicked . | . . . . Crushed . | . . . . Highest Temperature 258 | 47 114 258 . Average Temperature 68 | 23 34 107 . Received Heat Transfer 270 | . 48 162 60 Siege Activations . | . . . . Robots Corrupted . | . . . . Combat Hostiles . | . . . . Parts Fried . | . . . . Impact Corruptions . | . . . . Robots Melted . | . . . . Combat Hostiles . | . . . . Parts Melted . | . . . . Heat Transferred 1961 | 111 814 666 370 Parts Sabotaged . | . . . . Parts Stolen . | . . . . Parts Stripped . | . . . . Power Chain Reactions . | . . . . Missiles Intercepted . | . . . . Alert | -11 -10 -10 -10 ------- Run | Scr Mat Min Exi Peak Influence 139 | 5 108 139 . Average Influence 57 | 1 68 52 . Maximum Alert Level . | . . . . Low Security (%) 100 | 100 100 100 . Level 1 . | . . . . Level 2 . | . . . . Level 3 . | . . . . Level 4 . | . . . . Level 5 . | . . . . High Security . | . . . . Max Security . | . . . . Squads Dispatched 5 | . 4 1 . Investigation 4 | . 3 1 . Extermination . | . . . . Reinforcement 1 | . 1 . . Assault . | . . . . Garrison . | . . . . Intercept . | . . . . Construction Impeded . | . . . . Haulers Reinforced . | . . . . Stealth | -11 -10 -10 -10 --------- Run | Scr Mat Min Exi Distress Signals 1 | . 1 . . Communications Jammed . | . . . . Distress Signals . | . . . . Times Spotted 31 | . 11 12 8 Peak Tracking Total 9 | . 4 3 9 Tactical Retreats 5 | . 1 4 . Traps | -11 -10 -10 -10 ------- Run | Scr Mat Min Exi Traps Triggered 2 | . 2 . . Indirectly . | . . . . Trap Hack Attempts . | . . . . Triggered . | . . . . Disarmed . | . . . . Reprogrammed . | . . . . Reused . | . . . . Traps Extracted . | . . . . Installed . | . . . . Triggered . | . . . . Machines | -11 -10 -10 -10 ---------- Run | Scr Mat Min Exi Machines Disabled 1 | . . . 1 Max in Single Turn 1 | . . . 1 Machines Sabotaged . | . . . . Garrisons Compromised . | . . . . Overloaded Fab Kills . | . . . . Fab Network Shutdowns . | . . . . Hacking | -11 -10 -10 -10 --------- Run | Scr Mat Min Exi Machines Accessed 8 | . 5 1 2 Terminals 4 | . 4 . . Fabricators . | . . . . Repair Stations . | . . . . Recycling Units 1 | . 1 . . Scanalyzers . | . . . . Garrison Access . | . . . . Total Hacks 16 | . 13 1 2 Successful 9 | . 6 1 2 Failed 6 | . 6 . . Catastrophic 1 | . 1 . . Database Lockouts 1 | . 1 . . Manual 12 | . 11 . 1 Terminals 12 | . 12 . . Fabricators . | . . . . Repair Stations . | . . . . Recycling Units 1 | . 1 . . Scanalyzers . | . . . . Garrison Access . | . . . . Terminal Hacks 7 | . 4 1 2 Record 1 | . . . 1 Robot Analysis 2 | . 2 . . Open Door 1 | . . 1 . Branch Access Points 1 | . 1 . . Alert Level 1 | . 1 . . EX-Prototype ID Bank 1 | . . . 1 Fabricator Hacks . | . . . . Repair Station Hacks . | . . . . Recycling Unit Hacks . | . . . . Scanalyzer . | . . . . Garrison Access Hacks . | . . . . Unauthorized Hacks 2 | . 2 . . Terminals 2 | . 2 . . Botnet 1 | . 1 . . Disrupt 1 | . 1 . . Fabricators . | . . . . Repair Stations . | . . . . Recycling Units . | . . . . Scanalyzers . | . . . . Garrison Access . | . . . . Data Cores Recovered . | . . . . Used . | . . . . Hacking Detections 5 | . 5 . . Full Trace Events . | . . . . Feedback Events . | . . . . Feedback Blocked . | . . . . Robot Schematics Acquired . | . . . . Robots Built . | . . . . Matter . | . . . . Time . | . . . . Total Robot Build Rating . | . . . . Part Schematics Acquired . | . . . . Parts Built . | . . . . Matter . | . . . . Time . | . . . . Total Part Build Rating . | . . . . Parts Repaired . | . . . . Time . | . . . . Parts Recycled . | . . . . Recycled Matter . | . . . . Retrieved Matter . | . . . . Retrieved Components . | . . . . Parts Scanalyzed . | . . . . Part Schematics Acquired . | . . . . Parts Damaged . | . . . . Bothacking | -11 -10 -10 -10 ------------ Run | Scr Mat Min Exi Used RIF Installer . | . . . . Robots Hacked . | . . . . Non-combat . | . . . . Combat . | . . . . Robot Hacks Applied . | . . . . Relay Couplers Released . | . . . . Robots Rewired . | . . . . Allies Hacked . | . . . . Hacks Repelled . | . . . . Allies | -11 -10 -10 -10 -------- Run | Scr Mat Min Exi Total Allies . | . . . . Largest Group . | . . . . Highest-Rated Group . | . . . . Highest-Rated Ally . | . . . . Total Orders . | . . . . Ally Attacks . | . . . . Total Damage . | . . . . Kills . | . . . . Allies Corrupted . | . . . . Allies Melted . | . . . . Intel | -11 -10 -10 -10 ------- Run | Scr Mat Min Exi Robot Analysis Total 2 | . 2 . . Derelict Logs Recovered 1 | . . 1 . Drone Launches . | . . . . Drone Recoveries . | . . . . Exploration | -11 -10 -10 -10 ------------- Run | Scr Mat Min Exi Turns Passed 3192 | 14 644 1185 1349 Spaces Moved 1429 | 2 294 581 552 Core . | . . . . Treads 1356 | . 284 581 491 Legs 12 | 2 10 . . Wheels 61 | . . . 61 Hover . | . . . . Flight . | . . . . Fastest Speed 120 | 120 120 180 120 Average Speed 177 | 120 178 180 173 Slowest Speed 180 | 120 180 180 180 Overloaded Moves . | . . . . Propulsion Burnouts . | . . . . Robots Hopped . | . . . . Cave-ins Triggered . | . . . . Exploration Rate (%) 54 | 2 48 97 70 Regions Visited 3 Branch Regions 2 Pre-discovered Areas 1 | . . . 1 Known Exits Taken 1 | . 1 . . Unknown Exits Taken 2 | 1 . 1 . Scrap Searched 2 | . . 2 . Spaces Dug . | . . . . Terrain Destroyed . | . . . . Melee . | . . . . Projectile . | . . . . AOE . | . . . . Actions | -11 -10 -10 -10 --------- Run | Scr Mat Min Exi Total 1973 | 5 366 676 926 Wait 398 | . 20 54 324 Move 1426 | 1 293 580 552 Hop . | . . . . Pick Up 33 | . 16 4 13 Fast Attach 2 | . 1 1 . Attach 6 | . 2 . 4 Detach 3 | . . . 3 Swap 10 | . 3 3 4 Drop 28 | . 7 7 14 Fire 52 | 4 24 23 1 Melee 11 | . . . 11 Ram . | . . . . Kick . | . . . . Crush 4 | . . 4 . Escape Stasis . | . . . . Rewire . | . . . . Trap . | . . . . Miscellaneous . | . . . . Route ------- -11/Scrapyard -10/Materials (discovered 2 exits: [*Mat] / *Min) -10/Mines (discovered 3 exits: [*Mat x2] / *Exi) -10/Exiles (discovered 2 exits: [*Min x2]) History --------- Turn | Location | Event 13 | -11/Scrapyard | Discovered new exit (range 1) 15 | -11/Scrapyard | Entered Materials 301 | -10/Materials | Build established: Mutant 342 | -10/Materials | Discovered new exit (range 4) 359 | -10/Materials | Identified exit to Mines 379 | -10/Materials | Central database locked down 659 | -10/Materials | Entered Mines 746 | -10/Mines | Met a Derelict shopkeep closing up shop 1250 | -10/Mines | Discovered new exit (range 10) 1288 | -10/Mines | Deemed a non-threat by the Exiles lab entrance 1288 | -10/Mines | Discovered new exit (range 5) 1430 | -10/Mines | Learned 4 Materials zone layouts 1435 | -10/Mines | Joined a pair of Derelicts in attacking an 0b10 outpost 1611 | -10/Mines | Discovered new exit (range 6) 1844 | -10/Mines | Entered Exiles 1921 | -10/Exiles | Discovered new exit (range 14) 1946 | -10/Exiles | Met 8R-AWN 1978 | -10/Exiles | Met EX-HEX 2056 | -10/Exiles | Met EX-DEC 2084 | -10/Exiles | Learned location of Zion (-7) 2196 | -10/Exiles | Met EX-BIN 2221 | -10/Exiles | Aligned with FarCom system 2223 | -10/Exiles | Given EX-Vault access code 2264 | -10/Exiles | Opened EX-Vault 2276 | -10/Exiles | Found Lightpack 2.0 2280 | -10/Exiles | Found Chronowheel 2285 | -10/Exiles | Found AWS/Thermal 2324 | -10/Exiles | Warned to stay clear of 0b10 Research branches 2435 | -10/Exiles | Discovered new exit (range 14) 3072 | -10/Exiles | Attacked by the Exiles 3134 | -10/Exiles | Destroyed 7 combat bots 3167 | -10/Exiles | Core integrity fell below 50% 3183 | -10/Exiles | Core integrity fell below 20% 3193 | -10/Exiles | Destroyed by 8R-AWN with 8R-AWN's Boregun Last Messages --------------- 03184_ HV Slug penetrates Earth. 03184_ Penetrated by HV Slug. 03184_ HV Slug penetrates Earth. 03185_ Mining Claw follow-up attack on 8R-AWN. 03187_ Penetrated by HV Slug. 03187_ HV Slug penetrates Earth. 03187_ Penetrated by HV Slug. 03187_ HV Slug penetrates Earth. 03189_ Penetrated by HV Slug. 03189_ HV Slug penetrates Earth. 03189_ Penetrated by HV Slug. 03189_ HV Slug penetrates Earth. 03189_ Mining Claw follow-up attack on 8R-AWN. 03191_ Penetrated by HV Slug. 03191_ Critical hit. 03191_ Lgt. Treads destroyed. 03191_ HV Slug penetrates Earth. 03191_ Penetrated by HV Slug. 03191_ HV Slug penetrates Earth. 03193_ Penetrated by HV Slug. Map ----- +----------------------------------------------------+ | ?????????????????????????????????????????????????? | | ?????????????????????????????????????????????????? | | ????????####?????????????????????????????????????? | | ???????## ##???????????????????????????????????? | | ???????# #???????????????????????????????????? | | ???????# < #???????????????????????????????????? | | ???????# ###?????????????????????????????????? | | ???????# !! #?????????????????????????????????? | | ???????# ##?????????????????????????????????? | | ???????## #??????????????????????????????????? | | ????????# ##?????????????????????????????????? | | ????????## #????????????#######??????????????? | | ?????????# #######??????#!!! "#??????????????? | | ?????????# #""##?????# "#??????????????? | | ?????????## #?????# "#??????????????? | | ??????????##" ##???## ""#????????????### | | ??????????#"" #####" ""#???????????? " | | ??????????#### ##" ""#????????????" " | | ?????????????## #"" ###???????????"" | | ??????????????#"## #????????????#"" | | ??????????????####### ##???????????#"" | | ????????????????????### "#???????????? | | ??????????????########"% ###???????????" | | ??????????????# !!"""""%% ##??????????# | | ??????????????#! g ;##"" ######???### | | ??????????????#! % @;###" """#####X# | | ??????????????#! #;#?#" | | ??????????????# !""""""### #"# | | ??????????????#########????# #### | | ????????????????????????????# #?### | | ?????????????????????????????# #??### | | ??????????????????????????????# #???## | | ???????????????????????????????# #???## | | ????????????????????????????????##????##" | | ???????????????????????????????????????#""" | | ??????????????????????????????????????##" | | ??????????????????????????????????????#"" | | ??????????????????????????????????????#""" | | ??????????????????????????????????????""" | | ??????????????????????????????????????""" | | ??????????????????????????????????????"" | | ??????????????????????????????????????""" | | ??????????????????????????????????????"" | | ??????????????????????????????????????#"" | | ???????????????????????????????????????"""" | | ???????????????????????????????????????# | | ????????????????????????????????????????" | | ????????????????????????????????????????"""" | | ?????????????????????????????????????????" | | ????????????????????????????????????????? | +----------------------------------------------------+ Best States ------------- Heat Dissipation 25 Energy Generation 10 Energy Capacity 250 Matter Stores 300 Matter Capacity 300 Sight Range 16 Terrain Scan Density 10 Evasion (%) 40 Recoil Reduction 2 Item Schematics ----------------- None Robot Schematics ------------------ None Fabricated ------------ Nothing Alien Tech Used ----------------- None Achievements -------------- None Challenges ------------ None Game ------ Seed PoweredCouplerInverter Manual? 0 Play Time 00:21:50 Cumulative 699.1 hours Start 2020.05.31 @ 12:56:06 End 2020.05.31 @ 13:17:21 Sessions 1 Manual Loads 0 Difficulty Rogue Special Mode None Game No. 443 Rogue 443 Adventurer 0 Explorer 0 Win Type - Total 106 Types 72/6/8/10/5/1/4 Lore% 97 Gallery% 95 Achievement% 80 Wizard Run 0 Options --------- ASCII 0 Keyboard 0 Movement Numpad Keybinds 0 Fullscreen 2 Font 18/SmallcapsGlow Map View 76x50 Tactical HUD 1 Map Filters NONE Filters NONE Steam 1 RUN: 7e1a3033-9614-4615-8d70-d0bbb4572a9b